bitfinex/quotes_BTCUSD_20250917
["timestamp","ask_amount","ask_price","bid_price","bid_amount"]
[1758090721411,0.77386914,117130.0,117120.0,0.00100001]
[1758090721655,0.92421579,117130.0,117120.0,0.00100001]
[1758090723138,0.91549721,117130.0,117120.0,0.00100001]
[1758090724159,0.92399683,117130.0,117120.0,0.00100001]
[1758090724931,0.31346529,117130.0,117120.0,0.00100001]
[1758090724980,0.30496567,117130.0,117120.0,0.34453155]
[1758090725205,0.30496567,117130.0,117120.0,0.00100001]
[1758090725423,0.30496567,117130.0,117120.0,0.51529657]
[1758090725647,0.11225762,117130.0,117120.0,0.51529657]
[1758090726072,0.08660145,117130.0,117120.0,0.51529657]
[1758090726227,0.08660145,117130.0,117120.0,0.59729657]
[1758090726660,0.0001,117130.0,117120.0,0.93982811]
[1758090726881,0.17097632,117140.0,117120.0,0.93992811]
[1758090727091,0.25747777,117140.0,117130.0,0.28407504]
[1758090727306,0.25747777,117140.0,117130.0,0.61053154]
[1758090728587,0.25747777,117140.0,117130.0,0.78128198]
[1758090728788,0.25747777,117140.0,117130.0,0.34353154]
[1758090728997,0.25747777,117140.0,117130.0,0.267]
[1758090729213,0.33894192,117140.0,117130.0,0.2671]
[1758090729438,0.68247346,117140.0,117130.0,0.0001]
[1758090731551,0.33894192,117140.0,117130.0,0.0001]
[1758090732941,0.33894192,117140.0,117130.0,0.0011]
[1758090733705,0.64446191,117140.0,117130.0,0.0011]
[1758090742764,0.67011121,117140.0,117130.0,0.0011]
[1758090743622,0.28312707,117140.0,117130.0,0.0011]
[1758090743840,0.58864706,117140.0,117130.0,0.0011]
[1758090744089,0.28312707,117140.0,117130.0,0.01817504]
[1758090744772,0.25747777,117140.0,117130.0,0.01817504]
[1758090746909,0.25747777,117140.0,117130.0,0.0011]
[1758090747121,0.25747777,117140.0,117130.0,0.01817504]
[1758090747322,0.25747777,117140.0,117130.0,0.0011]
[1758090747941,0.25747777,117140.0,117130.0,0.01817504]
[1758090752160,0.25747777,117140.0,117130.0,0.0011]
[1758090752308,0.25747777,117140.0,117130.0,0.26802]
[1758090755271,0.08674153,117140.0,117130.0,0.17185044]
[1758090755536,0.08674153,117140.0,117130.0,0.45728548]
[1758090755756,0.2574774,117140.0,117130.0,0.44021044]
[1758090756428,0.08674153,117140.0,117130.0,0.44021044]
[1758090757484,0.08674153,117140.0,117130.0,0.44860946]
[1758090757693,0.08674153,117140.0,117130.0,0.75412945]
[1758090758128,0.08674153,117140.0,117130.0,0.74573043]
[1758090758345,0.08674153,117140.0,117130.0,0.44021044]
[1758090758549,0.08674153,117140.0,117130.0,0.17185044]
[1758090758736,0.08674153,117140.0,117130.0,0.45736548]
[1758090758981,0.08674153,117140.0,117130.0,0.44029044]
[1758090760185,0.2574774,117140.0,117130.0,0.44021044]
[1758090760390,0.08674153,117140.0,117130.0,0.44021044]
[1758090762603,0.2574774,117140.0,117130.0,0.44021044]
[1758090763140,0.08674153,117140.0,117130.0,0.44021044]
[1758090764474,0.2574774,117140.0,117130.0,0.44021044]
[1758090766391,0.08674153,117140.0,117130.0,0.44021044]
[1758090767732,0.2574774,117140.0,117130.0,0.44021044]
[1758090767937,0.08674153,117140.0,117130.0,0.17185044]
[1758090768141,0.08674153,117140.0,117130.0,0.76252547]
[1758090768365,0.08674153,117140.0,117130.0,0.74545043]
[1758090769184,0.08674153,117140.0,117130.0,0.74541043]
[1758090769401,0.00024008,117140.0,117130.0,0.74541043]
[1758090769830,0.00014008,117140.0,117130.0,0.74541043]
[1758090780025,0.00014008,117140.0,117130.0,0.74513043]
[1758090782668,0.00014008,117140.0,117130.0,0.47637043]
[1758090782893,0.00014008,117140.0,117130.0,0.74409043]
[1758090783109,0.00014008,117140.0,117130.0,0.47637043]
[1758090783480,0.00014008,117140.0,117130.0,0.74405043]
[1758090783865,0.00014008,117140.0,117130.0,0.74905043]
[1758090785971,0.00014008,117140.0,117130.0,0.48137043]
[1758090786189,0.00014008,117140.0,117130.0,0.74897043]
[1758090788450,0.00014008,117140.0,117130.0,0.74889043]
[1758090791002,0.00014008,117140.0,117130.0,0.44337044]
[1758090791142,0.00014008,117140.0,117130.0,0.74889043]
[1758090791363,0.00014008,117140.0,117130.0,0.74881043]
[1758090791954,0.00014008,117140.0,117130.0,0.78689322]
[1758090792165,0.00014008,117140.0,117130.0,0.44329044]
[1758090792608,0.00014008,117140.0,117130.0,0.78689322]
[1758090793338,0.00014008,117140.0,117130.0,0.17585044]
[1758090793699,0.17087595,117140.0,117130.0,0.44329044]
[1758090793798,0.51447873,117140.0,117130.0,0.27254]
[1758090794000,0.58300891,117140.0,117130.0,0.27254]
[1758090794222,0.66951036,117140.0,117130.0,0.0051]
[1758090794416,0.66961036,117140.0,117130.0,0.27254]
[1758090794634,0.67468036,117140.0,117130.0,0.27254]
[1758090795270,0.66961036,117140.0,117130.0,0.27254]
[1758090796329,0.69911036,117140.0,117130.0,0.2725]
[1758090796531,0.67468036,117140.0,117130.0,0.0051]
[1758090796742,0.69911036,117140.0,117130.0,0.2725]
[1758090796969,0.69911036,117140.0,117130.0,0.2724]
[1758090797187,0.69911036,117140.0,117130.0,0.005]
[1758090797418,1.03911036,117140.0,117130.0,0.005]
[1758090797838,1.03911036,117140.0,117130.0,0.002]
[1758090798974,1.31049041,117140.0,117130.0,0.002]
[1758090799171,1.31049041,117140.0,117130.0,0.00645922]
[1758090799681,1.34064231,117140.0,117130.0,0.00445922]
[1758090799954,1.34663284,117140.0,117130.0,0.00445922]
[1758090800501,1.34663284,117140.0,117130.0,0.00343848]
[1758090800733,0.51075044,117130.0,117120.0,1e-08]
[1758090800997,1.02735612,117130.0,117120.0,1e-08]
[1758090801255,1.05695612,117130.0,117120.0,1e-08]
[1758090802338,0.71335334,117130.0,117120.0,1e-08]
[1758090802787,1.05695612,117130.0,117120.0,1e-08]
[1758090805517,1.32487612,117130.0,117120.0,1e-08]
[1758090811099,0.71335334,117130.0,117120.0,1e-08]
[1758090811305,1.32503612,117130.0,117120.0,1e-08]
[1758090811818,0.98143334,117130.0,117120.0,1e-08]
[1758090812258,1.32503612,117130.0,117120.0,1e-08]
[1758090813383,1.35068875,117130.0,117120.0,1e-08]
[1758090814895,1.08260875,117130.0,117120.0,1e-08]
[1758090815103,1.35076875,117130.0,117120.0,1e-08]
[1758090817289,1.35674706,117130.0,117120.0,1e-08]
[1758090819222,1.37269779,117130.0,117120.0,1e-08]
[1758090825776,1.37271719,117130.0,117120.0,1e-08]
[1758090828913,1.02911441,117130.0,117120.0,1e-08]
[1758090829228,1.37271719,117130.0,117120.0,1e-08]
[1758090830740,1.37239719,117130.0,117120.0,1e-08]
[1758090831155,1.40354909,117130.0,117120.0,1e-08]
[1758090831556,1.40455652,117130.0,117120.0,1e-08]
[1758090833433,1.7481593,117130.0,117120.0,1e-08]
[1758090833849,1.40455652,117130.0,117120.0,1e-08]
[1758090836196,1.7481593,117130.0,117120.0,1e-08]
[1758090836411,1.40455652,117130.0,117120.0,1e-08]
[1758090836863,1.7481593,117130.0,117120.0,1e-08]
[1758090837336,1.4803193,117130.0,117120.0,1e-08]
[1758090837531,1.7480393,117130.0,117120.0,1e-08]
[1758090837959,1.40443652,117130.0,117120.0,1e-08]
[1758090839690,1.7480393,117130.0,117120.0,1e-08]
[1758090839918,1.74809637,117130.0,117120.0,1e-08]
[1758090842132,1.48037637,117130.0,117120.0,1e-08]
[1758090842343,1.74801637,117130.0,117120.0,1e-08]
[1758090842971,1.82997637,117130.0,117120.0,1e-08]
[1758090843179,1.56237637,117130.0,117120.0,1e-08]
[1758090843402,1.48637359,117130.0,117120.0,1e-08]
[1758090844327,1.21877359,117130.0,117120.0,1e-08]
[1758090844558,1.48637359,117130.0,117120.0,1e-08]
[1758090845911,1.48036845,117130.0,117120.0,1e-08]
[1758090846051,1.48636766,117130.0,117120.0,1e-08]
[1758090846549,1.21876766,117130.0,117120.0,1e-08]
[1758090846768,1.11829488,117130.0,117120.0,1e-08]
[1758090846962,1.45681637,117130.0,117120.0,1e-08]
[1758090847179,1.37991637,117130.0,117120.0,1e-08]
[1758090847369,1.40258637,117130.0,117120.0,1e-08]
[1758090847806,1.38658986,117130.0,117120.0,1e-08]
[1758090848007,1.40258611,117130.0,117120.0,1e-08]
[1758090848727,1.37991611,117130.0,117120.0,1e-08]
[1758090849100,1.29337466,117130.0,117120.0,1e-08]
[1758090849521,0.68221188,117130.0,117120.0,1e-08]
[1758090849724,0.64699998,117130.0,117120.0,1e-08]
[1758090849929,1.25816276,117130.0,117120.0,1e-08]
[1758090851260,1.24216651,117130.0,117120.0,1e-08]
[1758090851470,1.29240182,117130.0,117120.0,1e-08]
[1758090851885,0.9686073,117130.0,117120.0,1e-08]
[1758090852087,1.2362873,117130.0,117120.0,1e-08]
[1758090852315,0.89268452,117130.0,117120.0,1e-08]
[1758090852680,1.2362873,117130.0,117120.0,1e-08]
[1758090853939,0.89268452,117130.0,117120.0,1e-08]
[1758090854079,0.97918597,117130.0,117120.0,1e-08]
[1758090856236,0.95353334,117130.0,117120.0,1e-08]
[1758090857021,0.86703189,117130.0,117120.0,1e-08]
[1758090857425,0.59935189,117130.0,117120.0,1e-08]
[1758090858498,0.25935189,117130.0,117120.0,1e-08]
[1758090866014,0.25935189,117130.0,117120.0,0.17076503]
[1758090866226,0.25935189,117130.0,117120.0,0.18784153]
[1758090866838,0.08860145,117130.0,117120.0,0.47633645]
[1758090867612,0.08860145,117130.0,117120.0,0.74401645]
[1758090867853,0.08860145,117130.0,117120.0,0.43854503]
[1758090868022,0.08760145,117130.0,117120.0,0.43854503]
[1758090869252,0.08760145,117130.0,117120.0,0.17186503]
[1758090869451,0.25835189,117130.0,117120.0,0.43946503]
[1758090870683,0.25735189,117130.0,117120.0,0.43946503]
[1758090870894,0.25735189,117130.0,117120.0,0.44046503]
[1758090872876,0.25735189,117130.0,117120.0,0.17286503]
[1758090873083,0.25735189,117130.0,117120.0,0.44038503]
[1758090876242,0.08660145,117130.0,117120.0,0.44038503]
[1758090876467,0.08660145,117130.0,117120.0,0.74595645]
[1758090876654,0.08660145,117130.0,117120.0,0.47843645]
[1758090877762,0.08660145,117130.0,117120.0,0.17286503]
[1758090877971,0.08660145,117130.0,117120.0,0.47843645]
[1758090880064,0.08660145,117130.0,117120.0,0.17286503]
[1758090880280,0.08660145,117130.0,117120.0,0.44030503]
[1758090880533,0.08660145,117130.0,117120.0,0.44018503]
[1758090882141,0.08660145,117130.0,117120.0,0.17286503]
[1758090882338,0.25735189,117130.0,117120.0,0.17286503]
[1758090882548,0.30274957,117130.0,117120.0,0.26934001]
[1758090882765,0.30274957,117130.0,117120.0,0.00210001]
[1758090882984,0.30770957,117130.0,117120.0,0.26934001]
[1758090883148,0.30770957,117130.0,117120.0,0.00210001]
[1758090883348,0.63813099,117130.0,117120.0,0.00210001]
[1758090883593,0.63813099,117130.0,117120.0,0.26942001]
[1758090883817,0.66378358,117130.0,117120.0,0.00210001]
[1758090883949,0.69821216,117130.0,117120.0,0.00200001]
[1758090884156,1.27106358,117130.0,117120.0,0.00200001]
[1758090884368,1.27106358,117130.0,117120.0,0.00100001]
[1758090885294,1.27106358,117130.0,117120.0,1e-08]
[1758090891675,0.96549216,117130.0,117120.0,1e-08]
[1758090891834,1.27106358,117130.0,117120.0,1e-08]
[1758090892440,0.96549216,117130.0,117120.0,1e-08]
[1758090892679,1.00378358,117130.0,117120.0,1e-08]
[1758090892887,1.27102358,117130.0,117120.0,1e-08]
[1758090893488,0.92005448,117130.0,117120.0,1e-08]
[1758090893688,1.2256259,117130.0,117120.0,1e-08]
[1758090894261,0.9583859,117130.0,117120.0,1e-08]
[1758090894475,1.2256259,117130.0,117120.0,1e-08]
[1758090894673,0.92005448,117130.0,117120.0,1e-08]
[1758090894880,1.31212735,117130.0,117120.0,1e-08]
[1758090895702,1.04488735,117130.0,117120.0,1e-08]
[1758090896116,1.31163735,117130.0,117120.0,1e-08]
[1758090896318,1.28727735,117130.0,117120.0,1e-08]
[1758090896476,1.31163735,117130.0,117120.0,1e-08]
[1758090898142,1.04439735,117130.0,117120.0,1e-08]
[1758090898319,1.28727735,117130.0,117120.0,1e-08]
[1758090898558,0.98170593,117130.0,117120.0,1e-08]
[1758090898936,0.71446593,117130.0,117120.0,1e-08]
[1758090899142,0.62300448,117130.0,117120.0,1e-08]
[1758090901124,0.28300448,117130.0,117120.0,0.18784153]
[1758090901276,0.11225404,117130.0,117120.0,0.49341295]
[1758090901482,0.28300448,117130.0,117120.0,0.17076503]
[1758090901694,0.11225404,117130.0,117120.0,0.47633645]
[1758090901899,0.08660145,117130.0,117120.0,0.74357645]
[1758090902563,0.25735189,117130.0,117120.0,0.43804503]
[1758090902760,0.25735189,117130.0,117120.0,0.74361645]
[1758090902987,0.25735189,117130.0,117120.0,0.74371645]
[1758090903224,0.08660145,117130.0,117120.0,0.74471645]
[1758090903406,0.08660145,117130.0,117120.0,0.74571645]
[1758090905301,0.08660145,117130.0,117120.0,0.44014503]
[1758090908244,0.08660145,117130.0,117120.0,0.74571645]
[1758090908595,0.0001,117130.0,117120.0,0.82771645]
[1758090910370,0.0001,117130.0,117120.0,0.56043645]
[1758090910574,0.0001,117130.0,117120.0,0.82767645]
[1758090911420,0.0001,117130.0,117120.0,0.56043645]
[1758090911634,0.0001,117130.0,117120.0,0.82767645]
[1758090913826,0.0001,117130.0,117120.0,0.86575107]
[1758090915076,0.0001,117130.0,117120.0,0.52210503]
[1758090915317,0.0001,117130.0,117120.0,0.86575107]
[1758090916104,0.0001,117130.0,117120.0,1.20939711]
[1758090916737,0.0001,117130.0,117120.0,0.94215711]
[1758090916988,0.0001,117130.0,117120.0,1.20935711]
[1758090922231,0.0001,117130.0,117120.0,0.52206503]
[1758090922437,0.0001,117130.0,117120.0,1.20935711]
[1758090930984,0.00024008,117140.0,117130.0,0.17075044]
[1758090931183,0.00024008,117140.0,117130.0,0.53147152]
[1758090931393,0.00024008,117140.0,117130.0,0.51439648]
[1758090931980,0.00024008,117140.0,117130.0,0.78159648]
[1758090932390,0.00024008,117140.0,117130.0,0.78259648]
[1758090932618,0.00024008,117140.0,117130.0,0.78269648]
[1758090932815,0.00024008,117140.0,117130.0,0.84631141]
[1758090932985,0.00024008,117140.0,117130.0,0.84731141]
[1758090934292,0.00024008,117140.0,117130.0,0.58011141]
[1758090934494,0.00024008,117140.0,117130.0,0.84727141]
[1758090935827,0.00014008,117140.0,117130.0,0.85574399]
[1758090938825,0.00014008,117140.0,117130.0,0.61422764]
[1758090939053,0.00014008,117140.0,117130.0,0.88138764]
[1758090939505,0.00014008,117140.0,117130.0,0.61422764]
[1758090939726,0.00014008,117140.0,117130.0,0.88138764]
[1758090939919,0.00014008,117140.0,117130.0,0.88038764]
[1758090940213,0.00014008,117140.0,117130.0,0.88438764]
[1758090940671,0.00014008,117140.0,117130.0,0.88338764]
[1758090941169,0.00014008,117140.0,117130.0,1.22338764]
[1758090941439,0.00014008,117140.0,117130.0,1.65353513]
[1758090941829,0.00014008,117140.0,117130.0,1.04572909]
[1758090942037,0.00014008,117140.0,117130.0,1.31284909]
[1758090943093,0.00014008,117140.0,117130.0,1.71284909]
[1758090943660,0.00014008,117140.0,117130.0,1.44572909]
[1758090943861,0.00014008,117140.0,117130.0,1.71284909]
[1758090944293,0.00014008,117140.0,117130.0,2.05649513]
[1758090946600,0.00014008,117140.0,117130.0,1.36920305]
[1758090946808,0.00014008,117140.0,117130.0,2.05649513]
[1758090948478,0.00014008,117140.0,117130.0,1.78937513]
[1758090948706,0.00014008,117140.0,117130.0,2.05649513]
[1758090948891,0.00014008,117140.0,117130.0,1.71284909]
[1758090949812,0.00014008,117140.0,117130.0,1.7127959]
[1758090950500,0.00014008,117140.0,117130.0,1.7127559]
[1758090955360,0.00014008,117140.0,117130.0,1.4456759]
[1758090955607,0.00014008,117140.0,117130.0,1.7127559]
[1758090959007,0.00014008,117140.0,117130.0,1.36910986]
[1758090959210,0.00014008,117140.0,117130.0,1.7127559]
[1758090964139,0.00014008,117140.0,117130.0,1.4456759]
[1758090964339,0.00014008,117140.0,117130.0,1.7127159]
[1758090965424,0.00014008,117140.0,117130.0,2.0406759]
[1758090968954,0.00014008,117140.0,117130.0,1.42998986]
[1758090969185,0.00014008,117140.0,117130.0,1.7736359]
[1758090969414,0.00014008,117140.0,117130.0,1.02998986]
[1758090969632,0.00014008,117140.0,117130.0,1.28713445]
[1758090970112,0.00014008,117140.0,117130.0,1.55417445]
[1758090970315,0.00014008,117140.0,117130.0,1.28713445]
[1758090970525,0.00014008,117140.0,117130.0,1.55417445]
[1758090973715,0.00217008,117140.0,117130.0,1.21048841]
[1758090973928,0.00014008,117140.0,117130.0,1.21048841]
[1758090974692,0.00014008,117140.0,117130.0,1.51592852]
[1758090977829,0.00014008,117140.0,117130.0,1.21048841]
[1758090978066,0.00529008,117140.0,117130.0,1.21048841]
[1758090978282,0.00014008,117140.0,117130.0,1.21048841]
[1758090978745,0.00014008,117140.0,117130.0,0.94348841]
[1758090978959,0.00529008,117140.0,117130.0,0.86201583]
[1758090979167,0.02893008,117140.0,117130.0,0.86201583]
[1758090980444,0.02893008,117140.0,117130.0,0.87049033]
[1758090980843,0.02893008,117140.0,117130.0,0.60349033]
[1758090981075,0.02893008,117140.0,117130.0,0.87049033]
[1758090982229,0.00529008,117140.0,117130.0,0.86201583]
[1758090982422,0.02893008,117140.0,117130.0,0.86201583]
[1758090983641,0.02893008,117140.0,117130.0,0.59501583]
[1758090983887,0.02893008,117140.0,117130.0,0.86201583]
[1758090984113,0.48146606,117140.0,117130.0,0.53145409]
[1758090984317,0.52517124,117140.0,117130.0,0.44485044]
[1758090984523,0.21973113,117140.0,117130.0,0.44485044]
[1758090984950,0.21983113,117140.0,117130.0,0.44485044]
[1758090985173,0.02903008,117140.0,117130.0,0.44485044]
[1758090985583,0.02852579,117140.0,117130.0,0.44485044]
[1758090986041,0.02852579,117140.0,117130.0,0.44185044]
[1758090986289,0.02852579,117140.0,117130.0,0.43885044]
[1758090986773,0.02852579,117140.0,117130.0,0.43785044]
[1758090987218,0.02852579,117140.0,117130.0,0.44085044]
[1758090990739,0.19926166,117140.0,117130.0,0.44085044]
[1758090992305,0.00488579,117140.0,117130.0,0.44085044]
[1758090993146,0.0001,117140.0,117130.0,0.74629055]
[1758090993569,0.0001,117140.0,117130.0,0.81043085]
[1758090997905,0.0001,117140.0,117130.0,0.54343085]
[1758090998104,0.0001,117140.0,117130.0,0.81043085]
[1758091001757,0.0001,117140.0,117130.0,0.54343085]
[1758091001998,0.0001,117140.0,117130.0,0.81043085]
[1758091002190,0.0001,117140.0,117130.0,0.54343085]
[1758091002400,0.0001,117140.0,117130.0,0.81043085]
[1758091007654,0.0001,117140.0,117130.0,0.54343085]
[1758091007876,0.0001,117140.0,117130.0,0.89243085]
[1758091009589,0.0001,117140.0,117130.0,0.58699074]
[1758091009800,0.0001,117140.0,117130.0,0.62543085]
[1758091010017,0.00538,117140.0,117130.0,0.89243085]
[1758091010221,0.02798,117140.0,117130.0,0.89243085]
[1758091010771,0.00538,117140.0,117130.0,0.89243085]
[1758091011429,0.00538,117140.0,117130.0,0.58699074]
[1758091011663,0.00538,117140.0,117130.0,0.89243085]
[1758091012079,0.17611587,117140.0,117130.0,0.89243085]
[1758091012282,0.19871587,117140.0,117130.0,0.31999074]
[1758091012481,0.19871587,117140.0,117130.0,0.58699074]
[1758091013013,0.00538,117140.0,117130.0,0.58699074]
[1758091013796,0.17611587,117140.0,117130.0,0.58699074]
[1758091014202,0.02798,117140.0,117130.0,0.58699074]
[1758091016119,0.20074587,117140.0,117130.0,0.31999074]
[1758091016464,0.26854662,117140.0,117130.0,0.35206]
[1758091017077,0.20074587,117140.0,117130.0,0.52281044]
[1758091017516,0.20074587,117140.0,117130.0,0.51981044]
[1758091017941,0.20074587,117140.0,117130.0,0.52081044]
[1758091024611,0.20074587,117140.0,117130.0,0.35006]
[1758091025441,0.20074587,117140.0,117130.0,0.52081044]
[1758091026314,0.00538,117140.0,117130.0,0.52081044]
[1758091026737,0.0001,117140.0,117130.0,0.82625055]
[1758091027564,0.0001,117140.0,117130.0,0.89176195]
[1758091027791,0.0001,117140.0,117130.0,0.91740614]
[1758091029779,0.0011,117150.0,117140.0,0.17073587]
[1758091029991,0.0011,117150.0,117140.0,0.47617598]
[1758091030408,0.001,117150.0,117140.0,0.47617598]
[1758091030625,0.001,117150.0,117140.0,0.50181702]
[1758091032984,0.001,117150.0,117140.0,0.50191702]
[1758091035508,0.001,117150.0,117140.0,0.19647691]
[1758091035716,0.001,117150.0,117140.0,0.76883702]
[1758091035891,0.001,117150.0,117140.0,0.80691646]
[1758091042070,0.001,117150.0,117140.0,0.81091646]
[1758091043682,0.001,117150.0,117140.0,1.15091646]
[1758091046718,0.001,117150.0,117140.0,0.88399646]
[1758091046921,0.001,117150.0,117140.0,1.15087646]
[1758091048893,0.001,117150.0,117140.0,1.55087646]
[1758091052075,0.001,117150.0,117140.0,1.15087646]
[1758091052856,0.001,117150.0,117140.0,1.55087646]
[1758091054464,0.001,117150.0,117140.0,1.98089746]
[1758091054875,0.001,117150.0,117140.0,1.63737791]
[1758091058515,0.001,117150.0,117140.0,1.96529791]
[1758091059532,0.001,117150.0,117140.0,2.04193746]
[1758091059740,0.001,117150.0,117140.0,1.96525791]
[1758091060365,0.001,117150.0,117140.0,1.62173836]
[1758091060575,0.001,117150.0,117140.0,1.96525791]
[1758091061940,0.001,117150.0,117140.0,1.69841791]
[1758091062129,0.001,117150.0,117140.0,1.96525791]
[1758091063132,0.001,117150.0,117140.0,1.69841791]
[1758091063360,0.001,117150.0,117140.0,1.96525791]
[1758091064011,0.001,117150.0,117140.0,1.56525791]
[1758091068282,0.001,117150.0,117140.0,1.96525791]
[1758091071861,0.001,117150.0,117140.0,1.69841791]
[1758091072074,0.001,117150.0,117140.0,2.30873746]
[1758091073352,0.001,117150.0,117140.0,2.33888936]
[1758091075171,0.001,117150.0,117140.0,2.33944936]
[1758091078104,0.001,117150.0,117140.0,2.60524936]
[1758091078806,0.001,117150.0,117140.0,2.33788936]
[1758091078993,0.001,117150.0,117140.0,2.60512936]
[1758091082028,0.001,117150.0,117140.0,2.60504936]
[1758091087271,0.001,117150.0,117140.0,2.60496936]
[1758091088395,0.001,117150.0,117140.0,2.33788936]
[1758091088599,0.001,117150.0,117140.0,2.26148981]
[1758091088905,0.001,117150.0,117140.0,1.99436981]
[1758091089117,0.001,117150.0,117140.0,2.26148981]
[1758091090583,0.001,117150.0,117140.0,1.91801026]
[1758091091004,0.001,117150.0,117140.0,2.26152981]
[1758091091314,0.001,117150.0,117140.0,1.99436981]
[1758091091505,0.001,117150.0,117140.0,2.26148981]
[1758091092063,0.001,117150.0,117140.0,2.34344981]
[1758091095508,0.001,117150.0,117140.0,1.99993026]
[1758091095868,0.001,117150.0,117140.0,2.30522246]
[1758091097200,1e-08,117150.0,117140.0,2.30522246]
[1758091097409,1e-08,117150.0,117140.0,2.73488622]
[1758091097850,1e-08,117150.0,117140.0,2.83790808]
[1758091098064,1e-08,117150.0,117140.0,2.73488622]
[1758091098270,1e-08,117150.0,117140.0,2.73088622]
[1758091098479,1e-08,117150.0,117140.0,2.73488622]
[1758091098678,1e-08,117150.0,117140.0,2.73988622]
[1758091099490,0.06836146,117190.0,117180.0,0.51067759]
[1758091099749,0.0685018,117190.0,117180.0,0.85983759]
[1758091099975,0.0685018,117190.0,117180.0,1.16512979]
[1758091100399,0.0685018,117190.0,117180.0,1.19075988]
[1758091100558,0.00014034,117190.0,117180.0,1.19075988]
[1758091100980,0.00014034,117190.0,117180.0,1.60514133]
[1758091101617,0.00014034,117190.0,117180.0,1.62951289]
[1758091101818,0.00314034,117190.0,117180.0,1.32422069]
[1758091102026,0.00114034,117190.0,117180.0,1.62951289]
[1758091102233,0.00114034,117190.0,117180.0,1.32422069]
[1758091102398,0.00114034,117190.0,117180.0,1.60524133]
[1758091102601,0.00014034,117190.0,117180.0,1.60524133]
[1758091103655,0.00014034,117190.0,117180.0,1.43274913]
[1758091103861,0.00014034,117190.0,117180.0,2.01212133]
[1758091104064,0.00014034,117190.0,117180.0,2.0770476]
[1758091106087,0.00014034,117190.0,117180.0,2.0770876]
[1758091107513,0.00014034,117190.0,117180.0,1.7717954]
[1758091107813,0.00014034,117190.0,117180.0,2.0770876]
[1758091111810,0.00014034,117190.0,117180.0,2.13161106]
[1758091112568,0.00014034,117190.0,117180.0,2.18161106]
[1758091113910,0.00014034,117190.0,117180.0,2.18137106]
[1758091114141,0.00014034,117190.0,117180.0,2.18437106]
[1758091114550,0.00014034,117190.0,117180.0,2.1599995]
[1758091114753,0.00014034,117190.0,117180.0,2.1619995]
[1758091114919,0.00014034,117190.0,117180.0,1.8567073]
[1758091115093,0.00014034,117190.0,117180.0,2.1619995]
[1758091117333,0.00014034,117190.0,117180.0,2.1617995]
[1758091118161,0.00014034,117190.0,117180.0,2.1597995]
[1758091118380,0.00014034,117190.0,117180.0,2.1567995]
[1758091118581,0.00014034,117190.0,117180.0,2.1577995]
[1758091118827,0.00014034,117190.0,117180.0,2.1597995]
[1758091120347,0.00014034,117190.0,117180.0,2.18417106]
[1758091121665,0.06846146,117220.0,117210.0,0.4759261]
[1758091121898,0.06854129,117220.0,117210.0,0.8312461]
[1758091122106,0.06854129,117220.0,117210.0,0.8313461]
[1758091122514,0.00017983,117220.0,117210.0,0.85697108]
[1758091123510,0.00217983,117220.0,117210.0,0.86558205]
[1758091123884,0.00217983,117220.0,117210.0,0.92896148]
[1758091124128,0.00317983,117220.0,117210.0,0.92896148]
[1758091124588,0.00307983,117220.0,117210.0,0.92896148]
[1758091125830,0.00307983,117220.0,117210.0,0.62366928]
[1758091126037,0.00307983,117220.0,117210.0,0.92896148]
[1758091128733,0.00307983,117220.0,117210.0,0.65556148]
[1758091128940,0.00307983,117220.0,117210.0,0.92856148]
[1758091129772,0.00307983,117220.0,117210.0,0.65556148]
[1758091129991,0.00307983,117220.0,117210.0,0.92848148]
[1758091130201,0.00307983,117220.0,117210.0,0.92840148]
[1758091137031,0.00307983,117220.0,117210.0,0.92792148]
[1758091138444,0.00822983,117220.0,117210.0,0.92792148]
[1758091139101,0.00822983,117220.0,117210.0,0.92780148]
[1758091139339,0.03208983,117220.0,117210.0,0.92780148]
[1758091140496,0.03208983,117220.0,117210.0,0.65556148]
[1758091140716,0.03208983,117220.0,117210.0,0.92768148]
[1758091141945,0.02693983,117220.0,117210.0,0.92768148]
[1758091142167,0.03208983,117220.0,117210.0,0.92768148]
[1758091142593,0.00307983,117220.0,117210.0,0.92768148]
[1758091143006,0.00822983,117220.0,117210.0,0.92768148]
[1758091143215,0.03208983,117220.0,117210.0,0.62230928]
[1758091143419,0.00307983,117220.0,117210.0,0.92760148]
[1758091143625,0.00307983,117220.0,117210.0,0.65556148]
[1758091143857,0.00307983,117220.0,117210.0,0.92756148]
[1758091144030,0.00307983,117220.0,117210.0,0.65556148]
[1758091144237,0.00307983,117220.0,117210.0,1.35402293]
[1758091144238,0.00207983,117220.0,117210.0,1.35402293]
[1758091144808,7.983e-05,117220.0,117210.0,1.37839449]
[1758091145006,0.00107983,117220.0,117210.0,1.37839449]
[1758091145205,0.00107983,117220.0,117210.0,1.77839449]
[1758091147629,1e-08,117220.0,117210.0,1.85854639]
[1758091147837,1e-08,117220.0,117210.0,1.86221483]
[1758091148040,1e-08,117220.0,117210.0,1.88658639]
[1758091148248,1e-08,117220.0,117210.0,2.15834639]
[1758091148602,1e-08,117220.0,117210.0,1.88658639]
[1758091148809,0.02757,117250.0,117240.0,0.17059024]
[1758091149018,0.02803757,117250.0,117240.0,0.82948244]
[1758091149229,0.03007757,117250.0,117240.0,0.58908969]
[1758091150355,0.03207757,117250.0,117240.0,0.58918969]
[1758091150573,0.03307757,117250.0,117240.0,0.58918969]
[1758091150775,0.03307757,117250.0,117240.0,0.58914969]
[1758091154387,0.00921757,117250.0,117240.0,0.89444189]
[1758091154612,0.03307757,117250.0,117240.0,0.92005897]
[1758091154850,0.03307757,117250.0,117240.0,0.61476677]
[1758091155991,0.03307757,117250.0,117240.0,0.34312677]
[1758091156241,0.03307757,117250.0,117240.0,0.61448677]
[1758091156491,0.03307757,117250.0,117240.0,0.61436677]
[1758091159087,0.00610757,117250.0,117240.0,0.61436677]
[1758091159324,0.03307757,117250.0,117240.0,0.95737159]
[1758091159803,0.03307757,117250.0,117240.0,0.61436677]
[1758091160009,0.03307757,117250.0,117240.0,0.95737159]
[1758091160263,0.03307757,117250.0,117240.0,0.61436677]
[1758091160486,0.03307757,117250.0,117240.0,0.95737159]
[1758091161551,0.03307757,117250.0,117240.0,0.95837159]
[1758091162184,0.03307757,117250.0,117240.0,0.61536677]
[1758091162530,0.03307757,117250.0,117240.0,0.95837159]
[1758091162744,0.03307757,117250.0,117240.0,0.68613159]
[1758091162983,0.03307757,117250.0,117240.0,0.95829159]
[1758091163374,0.03307757,117250.0,117240.0,0.61528677]
[1758091163576,0.03307757,117250.0,117240.0,0.95829159]
[1758091164231,0.03307757,117250.0,117240.0,0.61528677]
[1758091164410,0.03307757,117250.0,117240.0,0.95829159]
[1758091164612,0.00406757,117250.0,117240.0,0.95829159]
[1758091165390,0.00921757,117250.0,117240.0,0.95829159]